bitfinex-derivatives/quotes_BNBF0:USTF0_20260114
["timestamp","ask_amount","ask_price","bid_price","bid_amount"]
[1768389851156,0.78149087,931.53,929.63,2.6562837]
[1768389851361,0.78149087,931.52,929.63,2.6562837]
[1768389851562,0.78149087,931.51,929.63,2.6562837]
[1768389851762,0.78149087,931.5,929.63,2.6562837]
[1768389851962,0.78149087,931.49,929.63,2.6562837]
[1768389852262,0.78149087,931.48,929.63,2.6562837]
[1768389852462,0.78149087,931.47,929.63,2.6562837]
[1768389852761,0.78149087,931.46,929.63,2.6562837]
[1768389852959,0.78123961,931.45,929.63,2.6562837]
[1768389853162,0.78123961,931.44,929.63,2.6562837]
[1768389853359,1.47,931.67,929.63,2.6562837]
[1768389853360,0.78123961,931.43,929.63,2.6562837]
[1768389853664,0.78123961,931.42,929.63,2.6562837]
[1768389853864,0.78123961,931.41,929.63,2.6562837]
[1768389854160,0.78123961,931.4,929.63,2.6562837]
[1768389854362,0.78123961,931.39,929.63,2.6562837]
[1768389854563,0.78123961,931.38,929.63,2.6562837]
[1768389854763,0.78123961,931.37,929.63,2.6562837]
[1768389855061,0.78123961,931.36,929.63,2.6562837]
[1768389855263,0.78123961,931.35,929.75,2.6562837]
[1768389855464,0.78123961,931.34,929.75,2.6562837]
[1768389855659,0.78123961,931.33,929.75,2.6562837]
[1768389855863,0.78123961,931.32,929.75,2.6562837]
[1768389856061,0.78123961,931.31,929.75,2.6562837]
[1768389856261,0.78123961,931.3,929.75,2.6562837]
[1768389856464,0.78123961,931.29,929.75,2.6562837]
[1768389856764,0.78123961,931.28,929.75,2.6562837]
[1768389856964,0.78123961,931.27,929.75,2.6562837]
[1768389857261,0.78123961,931.26,929.75,2.6562837]
[1768389857463,0.78123961,931.25,929.75,2.6562837]
[1768389857662,0.78123961,931.24,929.75,2.6562837]
[1768389857962,0.78123961,931.23,929.75,2.6562837]
[1768389858161,0.78123961,931.22,929.75,2.6562837]
[1768389858364,0.78123961,931.21,929.75,2.6562837]
[1768389858564,0.78123961,931.2,929.75,2.6562837]
[1768389858762,0.78123961,931.19,929.75,2.6562837]
[1768389858961,0.78123961,931.18,929.75,2.6562837]
[1768389859165,0.78123961,931.17,929.75,2.6562837]
[1768389859364,0.78123961,931.16,929.75,2.6562837]
[1768389859561,0.18684463,932.0,929.75,2.6562837]
[1768389859562,0.78123961,931.15,929.75,2.6562837]
[1768389859766,0.78123961,931.14,929.75,2.6562837]
[1768389859967,0.18684463,932.0,929.76,2.6562837]
[1768389859968,0.78123961,931.13,929.76,2.6562837]
[1768389860169,0.78123961,931.12,929.76,2.6562837]
[1768389860365,0.78123961,931.11,929.76,2.6562837]
[1768389860565,0.78123961,931.1,929.76,2.6562837]
[1768389860770,0.78123961,931.09,929.76,2.6562837]
[1768389861065,0.18684463,932.0,929.76,2.6562837]
[1768389861265,0.78053149,931.99,929.76,2.6562837]
[1768389861469,0.78053149,931.98,929.78,2.6562837]
[1768389861766,0.78053149,931.97,929.78,2.6562837]
[1768389861964,0.78053149,931.96,929.78,2.6562837]
[1768389862265,0.78053149,931.95,929.78,2.6562837]
[1768389862467,0.78053149,931.94,929.76,2.6562837]
[1768389862664,0.78053149,931.93,929.76,2.6562837]
[1768389862865,0.78053149,931.92,929.76,2.6562837]
[1768389863071,0.78053149,931.91,929.76,2.6562837]
[1768389863369,1.523,931.96,929.76,2.6562837]
[1768389863370,0.78053149,931.9,929.76,2.6562837]
[1768389863665,0.78053149,931.89,929.76,2.6562837]
[1768389863871,0.78053149,931.88,929.76,2.6562837]
[1768389864167,0.78053149,931.87,929.76,2.6562837]
[1768389864370,0.78053149,931.86,929.76,2.6562837]
[1768389864669,0.78053149,931.85,929.75,2.6562837]
[1768389864869,0.78053149,931.84,929.75,2.6562837]
[1768389865164,0.78053149,931.83,929.88,2.6562837]
[1768389865369,0.78053149,931.82,929.88,2.6562837]
[1768389865566,0.78053149,931.81,929.88,2.6562837]
[1768389865766,0.78053149,931.8,929.86,2.6562837]
[1768389865969,0.78053149,931.79,929.86,2.6562837]
[1768389866165,0.78053149,931.78,929.85,2.6562837]
[1768389866368,0.78053149,931.77,929.85,2.6562837]
[1768389866568,0.78053149,931.76,929.85,2.6562837]
[1768389866765,0.78053149,931.75,929.85,2.6562837]
[1768389867069,0.78053149,931.74,929.85,2.6562837]
[1768389867369,0.78053149,931.73,929.83,2.6562837]
[1768389867566,0.78053149,931.72,929.83,2.6562837]
[1768389867764,0.78053149,931.71,929.9,2.6562837]
[1768389867969,0.78053149,931.7,929.9,2.6562837]
[1768389868270,0.78053149,931.69,929.88,2.6562837]
[1768389868470,0.78053149,931.68,929.88,2.6562837]
[1768389868665,0.78053149,931.67,929.88,2.6562837]
[1768389868865,0.78053149,931.66,929.88,2.6562837]
[1768389869069,0.78053149,931.65,929.88,2.6562837]
[1768389869369,0.78053149,931.64,929.87,2.6562837]
[1768389869569,0.78053149,931.63,929.87,2.6562837]
[1768389869869,0.78053149,931.62,929.87,2.6562837]
[1768389870166,0.78053149,931.61,929.87,2.6562837]
[1768389870467,0.78053149,931.6,929.86,2.6562837]
[1768389870769,0.78053149,931.59,929.86,2.6562837]
[1768389870969,0.78053149,931.58,929.86,2.6562837]
[1768389871170,0.78053149,931.57,929.86,2.6562837]
[1768389871366,0.78053149,931.56,929.85,2.6562837]
[1768389871564,0.78053149,931.55,929.85,2.6562837]
[1768389871769,0.78053149,931.54,929.85,2.6562837]
[1768389871968,0.78053149,931.53,929.85,2.6562837]
[1768389872266,0.78053149,931.52,929.85,2.6562837]
[1768389872568,0.78053149,931.51,929.84,2.6562837]
[1768389872765,0.78053149,931.5,929.84,2.6562837]
[1768389873065,0.78053149,931.49,929.84,2.6562837]
[1768389873264,0.78053149,931.48,929.84,2.6562837]
[1768389873569,0.78053149,931.47,929.84,2.6562837]
[1768389873768,0.78053149,931.46,929.84,2.6562837]
[1768389873970,0.78053149,931.45,929.84,2.6562837]
[1768389874171,0.78053149,931.44,929.84,2.6562837]
[1768389874370,0.78053149,931.43,929.84,2.6562837]
[1768389874568,0.78053149,931.42,929.83,2.6562837]
[1768389874870,0.78053149,931.41,929.83,2.6562837]
[1768389875070,0.78053149,931.4,929.83,2.6562837]
[1768389875370,1.523,931.96,929.83,2.6562837]
[1768389875570,1.523,931.96,929.5,3.7187971]
[1768389875571,0.77632325,931.95,929.84,2.6562837]
[1768389875768,0.77632325,931.94,929.84,2.6562837]
[1768389875971,0.77632325,931.93,929.84,2.6562837]
[1768389876173,0.77632325,931.92,929.84,2.6562837]
[1768389876373,0.77632325,931.91,929.84,2.6562837]
[1768389876570,0.77632325,931.9,929.84,2.6562837]
[1768389876768,0.77632325,931.89,929.84,2.6562837]
[1768389876968,0.77632325,931.88,929.84,2.6562837]
[1768389877175,0.77632325,931.87,929.84,2.6562837]
[1768389877471,0.77632325,931.86,929.84,2.6562837]
[1768389877670,0.77632325,931.85,929.9,2.6562837]
[1768389877874,0.77632325,931.84,929.9,2.6562837]
[1768389878070,0.77632325,931.83,929.91,2.6562837]
[1768389878271,0.77632325,931.82,929.91,2.6562837]
[1768389878474,0.77632325,931.81,929.91,2.6562837]
[1768389878676,0.77632325,931.8,929.9,2.6562837]
[1768389878873,0.77632325,931.79,929.9,2.6562837]
[1768389879076,0.77632325,931.78,929.9,2.6562837]
[1768389879278,0.77632325,931.77,929.9,2.6562837]
[1768389879476,0.77632325,931.76,929.9,2.6562837]
[1768389879777,0.77632325,931.75,929.91,2.6562837]
[1768389880072,0.77632325,931.74,929.91,2.6562837]
[1768389880277,0.77562859,931.73,929.95,2.6562837]
[1768389880477,0.77562859,931.72,929.95,2.6562837]
[1768389880677,0.77562859,931.71,929.95,2.6562837]
[1768389880977,1.523,931.96,929.12,0.18691237]
[1768389880978,0.77562859,931.7,930.05,2.6562837]
[1768389881173,0.77562859,931.69,930.05,2.6562837]
[1768389881373,1.523,931.96,930.03,2.6562837]
[1768389881572,0.77543722,931.95,930.03,2.6562837]
[1768389881773,0.77543722,931.94,930.03,2.6562837]
[1768389881974,0.77543722,931.93,930.03,2.6562837]
[1768389882174,0.77543722,931.92,930.03,2.6562837]
[1768389882374,0.77543722,931.91,930.02,2.6562837]
[1768389882575,0.77543722,931.9,930.02,2.6562837]
[1768389882773,0.77543722,931.89,930.02,2.6562837]
[1768389882977,0.77543722,931.88,930.02,2.6562837]
[1768389883178,0.77543722,931.87,930.02,2.6562837]
[1768389883475,0.77543722,931.86,930.01,2.6562837]
[1768389883777,0.77543722,931.85,930.01,2.6562837]
[1768389884076,0.77543722,931.84,930.01,2.6562837]
[1768389884275,0.77543722,931.83,930.01,2.6562837]
[1768389884478,0.77543722,931.82,930.0,2.6562837]
[1768389884678,0.77543722,931.81,930.0,2.6562837]
[1768389884874,0.77543722,931.8,930.0,2.6562837]
[1768389885077,0.77543722,931.79,930.0,2.6562837]
[1768389885280,0.77543722,931.78,930.0,2.6562837]
[1768389885482,0.77543722,931.77,929.99,2.6562837]
[1768389885778,0.77543722,931.76,929.99,2.6562837]
[1768389885980,0.77543722,931.75,929.99,2.6562837]
[1768389886177,1.523,931.96,929.99,2.6562837]
[1768389886377,0.77447394,931.95,929.99,2.6562837]
[1768389886577,0.77447394,931.94,930.01,2.6562837]
[1768389886777,0.77447394,931.93,930.01,2.6562837]
[1768389886979,0.77447394,931.92,930.01,2.6562837]
[1768389887178,1.523,931.96,930.01,2.6562837]
[1768389887179,0.77447394,931.91,930.01,2.6562837]
[1768389887477,0.77447394,931.9,930.0,2.6562837]
[1768389887778,1.523,931.96,930.0,2.6562837]
[1768389887779,0.77447394,931.89,930.0,2.6562837]
[1768389887978,0.77447394,931.88,930.0,2.6562837]
[1768389888177,0.77447394,931.87,930.0,2.6562837]
[1768389888380,0.77447394,931.86,930.0,2.6562837]
[1768389888581,0.77447394,931.85,930.0,2.6562837]
[1768389888882,0.77447394,931.84,930.0,2.6562837]
[1768389889082,0.77447394,931.83,930.0,2.6562837]
[1768389889284,0.77447394,931.82,930.0,2.6562837]
[1768389889479,0.77447394,931.81,930.0,2.6562837]
[1768389889683,0.77447394,931.8,930.01,2.6562837]
[1768389889978,0.77447394,931.79,930.01,2.6562837]
[1768389890281,1.523,931.96,930.01,2.6562837]
[1768389890282,0.77447394,931.78,930.01,2.6562837]
[1768389890477,0.77447394,931.77,930.01,2.6562837]
[1768389890678,0.77447394,931.76,930.01,2.6562837]
[1768389890879,1.523,931.96,930.01,2.6562837]
[1768389891081,0.77412493,931.95,930.01,2.6562837]
[1768389891280,0.77412493,931.94,930.01,2.6562837]
[1768389891480,0.77412493,931.93,930.01,2.6562837]
[1768389891682,0.77412493,931.92,930.02,2.6562837]
[1768389891882,0.77412493,931.91,930.02,2.6562837]
[1768389892182,0.77412493,931.9,930.02,2.6562837]
[1768389892382,0.77412493,931.89,930.02,2.6562837]
[1768389892581,0.77412493,931.88,930.02,2.6562837]
[1768389892781,0.77412493,931.87,930.03,2.6562837]
[1768389892985,0.77412493,931.86,930.03,2.6562837]
[1768389893180,0.77412493,931.85,930.03,2.6562837]
[1768389893481,0.77412493,931.84,930.03,2.6562837]
[1768389893684,0.77412493,931.83,930.04,2.6562837]
[1768389893882,0.77412493,931.82,930.04,2.6562837]
[1768389894183,0.77412493,931.81,930.06,2.6562837]
[1768389894384,0.77412493,931.8,930.06,2.6562837]
[1768389894579,0.77412493,931.79,930.06,2.6562837]
[1768389894782,0.77412493,931.78,930.06,2.6562837]
[1768389894980,0.77412493,931.77,930.06,2.6562837]
[1768389895281,0.77427483,931.76,930.06,2.6562837]
[1768389895581,0.77427483,931.75,930.06,2.6562837]
[1768389895784,1.523,931.96,930.06,2.6562837]
[1768389896082,0.77427617,931.95,930.06,2.6562837]
[1768389896283,0.77427617,931.94,930.06,2.6562837]
[1768389896481,0.77427617,931.93,930.06,2.6562837]
[1768389896681,0.77427617,931.92,930.06,2.6562837]
[1768389896881,0.77427617,931.91,930.06,2.6562837]
[1768389897085,0.77427617,931.9,930.06,2.6562837]
[1768389897283,0.77427617,931.89,930.06,2.6562837]
[1768389897482,0.77427617,931.88,930.06,2.6562837]
[1768389897687,0.77427617,931.87,930.06,2.6562837]
[1768389897886,0.77427617,931.86,930.06,2.6562837]
[1768389898087,0.77427617,931.85,930.06,2.6562837]
[1768389898285,0.77427617,931.84,930.06,2.6562837]
[1768389898488,0.77427617,931.83,930.06,2.6562837]
[1768389898685,0.77427617,931.82,930.06,2.6562837]
[1768389898885,0.77427617,931.81,930.06,2.6562837]
[1768389899088,0.77427617,931.8,930.06,2.6562837]
[1768389899289,0.77427617,931.79,930.06,2.6562837]
[1768389899484,0.77427617,931.78,930.06,2.6562837]
[1768389899784,0.77427617,931.77,930.06,2.6562837]
[1768389899986,1.523,931.96,930.02,2.6562837]
[1768389900188,0.77479507,931.95,930.02,2.6562837]
[1768389900385,1.523,931.96,929.21,5.3125674]
[1768389900386,0.77479507,931.94,929.95,2.6562837]
[1768389900588,0.77479507,931.93,929.84,2.6562837]
[1768389900790,0.77479507,931.92,929.84,2.6562837]
[1768389901088,0.77479507,931.91,929.78,2.6562837]
[1768389901290,0.77479507,931.9,929.78,2.6562837]
[1768389901487,0.77479507,931.89,929.78,2.6562837]
[1768389901688,0.77479507,931.88,929.78,2.6562837]
[1768389901892,0.77479507,931.87,929.78,2.6562837]
[1768389902192,0.77479507,931.86,929.78,2.6562837]
[1768389902488,0.77479507,931.85,929.78,2.6562837]
[1768389902691,0.77479507,931.84,929.78,2.6562837]
[1768389902892,0.77479507,931.83,929.78,2.6562837]
[1768389903089,0.77479507,931.82,929.78,2.6562837]
[1768389903292,0.77479507,931.81,929.79,2.6562837]
[1768389903492,0.77479507,931.8,929.79,2.6562837]
[1768389903689,0.77479507,931.79,929.79,2.6562837]
[1768389903993,0.77479507,931.78,929.79,2.6562837]
[1768389904189,0.77479507,931.77,929.79,2.6562837]
[1768389904389,0.77479507,931.76,929.79,2.6562837]
[1768389904594,0.77479507,931.75,929.79,2.6562837]
[1768389904794,0.77479507,931.74,929.79,2.6562837]
[1768389904994,0.77479507,931.73,929.79,2.6562837]
[1768389905293,0.77479507,931.72,929.79,2.6562837]
[1768389905494,0.77479507,931.71,929.79,2.6562837]
[1768389905790,0.77479507,931.7,929.79,2.6562837]
[1768389906090,0.77479507,931.69,929.79,2.6562837]
[1768389906292,0.77479507,931.68,929.79,2.6562837]
[1768389906591,0.77479507,931.67,929.8,2.6562837]
[1768389906891,0.77479507,931.66,929.83,2.6562837]
[1768389907089,0.77479507,931.65,929.83,2.6562837]
[1768389907294,0.77479507,931.64,929.83,2.6562837]
[1768389907494,0.77479507,931.63,929.87,2.6562837]
[1768389907693,0.77479507,931.62,929.87,2.6562837]
[1768389907898,0.77479507,931.61,929.87,2.6562837]
[1768389908093,0.77479507,931.6,929.87,2.6562837]
[1768389908295,0.77479507,931.59,929.87,2.6562837]
[1768389908594,0.77479507,931.58,929.89,2.6562837]
[1768389908892,0.77479507,931.57,929.89,2.6562837]
[1768389909095,0.77479507,931.56,929.89,2.6562837]
[1768389909296,0.77479507,931.55,929.89,2.6562837]
[1768389909493,0.77479507,931.54,929.9,2.6562837]
[1768389909697,0.77479507,931.53,929.9,2.6562837]
[1768389909998,0.77479507,931.52,929.9,2.6562837]
[1768389910197,0.77479507,931.51,929.9,2.6562837]
[1768389910398,0.77479507,931.5,929.9,2.6562837]
[1768389910594,0.77479507,931.49,929.9,2.6562837]
[1768389910795,0.77479507,931.48,929.9,2.6562837]
[1768389910997,0.77479507,931.47,929.9,2.6562837]
[1768389911298,0.77479507,931.46,929.9,2.6562837]
[1768389911495,0.77479507,931.45,929.9,2.6562837]
[1768389911696,0.77479507,931.44,929.9,2.6562837]
[1768389911897,0.77479507,931.43,929.9,2.6562837]
[1768389912096,0.77479507,931.42,929.9,2.6562837]
[1768389912299,0.77479507,931.41,929.91,2.6562837]
[1768389912498,0.77479507,931.4,929.91,2.6562837]
[1768389912702,1.523,931.96,929.91,2.6562837]
[1768389912895,0.7769293,931.95,929.91,2.6562837]
[1768389913199,0.7769293,931.94,929.95,2.6562837]
[1768389913401,0.7769293,931.93,929.95,2.6562837]
[1768389913601,0.7769293,931.92,929.95,2.6562837]
[1768389913896,0.7769293,931.91,929.95,2.6562837]
[1768389914094,0.7769293,931.9,929.95,2.6562837]
[1768389914297,0.7769293,931.89,929.95,2.6562837]
[1768389914500,0.7769293,931.88,929.95,2.6562837]
[1768389914699,0.7769293,931.87,929.95,2.6562837]
[1768389914898,0.7769293,931.86,929.95,2.6562837]
[1768389915102,0.7769293,931.85,929.95,2.6562837]
[1768389915400,0.7769293,931.84,929.95,2.6562837]
[1768389915598,0.7769293,931.83,929.95,2.6562837]
[1768389915798,0.7769293,931.82,929.98,2.6562837]
[1768389915998,0.7769293,931.81,929.98,2.6562837]
[1768389916203,0.7769293,931.8,929.98,2.6562837]
[1768389916399,0.7769293,931.79,929.99,2.6562837]
[1768389916599,0.7769293,931.78,929.99,2.6562837]
[1768389916801,0.7769293,931.77,929.96,2.6562837]
[1768389917006,0.7769293,931.76,929.96,2.6562837]
[1768389917299,0.7769293,931.75,929.93,2.6562837]
[1768389917502,0.7769293,931.74,929.93,2.6562837]
[1768389917705,0.7769293,931.73,929.93,2.6562837]
[1768389917906,0.7769293,931.72,929.93,2.6562837]
[1768389918102,0.7769293,931.71,929.93,2.6562837]
[1768389918304,0.7769293,931.7,929.93,2.6562837]
[1768389918503,0.7769293,931.69,930.0,2.6562837]
[1768389918703,0.7769293,931.68,930.0,2.6562837]
[1768389919002,0.7769293,931.67,930.08,2.6562837]
[1768389919205,0.7769293,931.66,930.08,2.6562837]
[1768389919403,0.7769293,931.65,930.08,2.6562837]
[1768389919604,0.7769293,931.64,930.08,2.6562837]
[1768389919800,0.18678797,932.45,930.08,2.6562837]
[1768389919801,0.7769293,931.63,930.08,2.6562837]
[1768389920000,0.7769293,931.62,930.08,2.6562837]
[1768389920303,0.7769293,931.61,930.08,2.6562837]
[1768389920504,0.7769293,931.6,930.08,2.6562837]
[1768389920804,0.18678797,932.45,930.08,2.6562837]
[1768389921003,0.77739454,932.44,930.08,2.6562837]
[1768389921204,0.77739454,932.43,930.08,2.6562837]
[1768389921404,0.77739454,932.42,930.08,2.6562837]
[1768389921599,0.77739454,932.41,930.08,2.6562837]
[1768389921798,0.77739454,932.4,930.08,2.6562837]
[1768389922002,0.77739454,932.39,930.08,2.6562837]
[1768389922204,0.77739454,932.38,930.08,2.6562837]
[1768389922403,0.77739454,932.37,930.08,2.6562837]
[1768389922602,0.77739454,932.36,930.08,2.6562837]
[1768389922799,0.77739454,932.35,930.08,2.6562837]
[1768389923002,0.77739454,932.34,930.08,2.6562837]
[1768389923203,0.77739454,932.33,930.08,2.6562837]
[1768389923405,0.77739454,932.32,930.08,2.6562837]
[1768389923605,0.77739454,932.31,930.08,2.6562837]
[1768389923899,0.77739454,932.3,930.08,2.6562837]
[1768389924106,0.77739454,932.29,930.08,2.6562837]
[1768389924405,0.77739454,932.28,930.08,2.6562837]
[1768389924605,0.77739454,932.27,930.08,2.6562837]
[1768389924803,0.77739454,932.26,930.08,2.6562837]
[1768389925000,0.77739454,932.25,930.08,2.6562837]
[1768389925206,0.77739454,932.24,930.08,2.6562837]
[1768389925411,0.77739454,932.23,930.08,2.6562837]
[1768389925607,0.77739454,932.22,930.08,2.6562837]
[1768389925805,0.77739454,932.21,930.08,2.6562837]
[1768389926108,0.77739454,932.2,930.13,2.6562837]
[1768389926406,0.77739454,932.19,930.13,2.6562837]
[1768389926607,0.77739454,932.18,930.13,2.6562837]
[1768389926803,0.77739454,932.17,930.13,2.6562837]
[1768389927004,0.77739454,932.16,930.13,2.6562837]
[1768389927209,0.77739454,932.15,930.13,2.6562837]
[1768389927509,0.77739454,932.14,930.13,2.6562837]
[1768389927706,0.77739454,932.13,930.14,2.6562837]
[1768389928004,0.77739454,932.12,930.14,2.6562837]
[1768389928205,0.77739454,932.11,930.14,2.6562837]
[1768389928409,0.77739454,932.1,930.14,2.6562837]
[1768389928606,0.77739454,932.09,930.14,2.6562837]
[1768389928808,0.77739454,932.08,930.14,2.6562837]
[1768389929004,0.77739454,932.07,930.14,2.6562837]
[1768389929209,0.77739454,932.06,930.14,2.6562837]
[1768389929408,0.77739454,932.05,930.14,2.6562837]
[1768389929605,0.77739454,932.04,930.14,2.6562837]
[1768389929805,0.77739454,932.03,930.14,2.6562837]
[1768389930009,0.77739454,932.02,930.14,2.6562837]
[1768389930205,0.77739454,932.01,930.14,2.6562837]
[1768389930509,0.77739454,932.0,930.14,2.6562837]
[1768389930809,0.77739454,931.99,930.14,2.6562837]
[1768389931005,0.77739454,931.98,930.14,2.6562837]
[1768389931206,0.77739454,931.97,930.14,2.6562837]
[1768389931411,0.77739454,931.96,930.14,2.6562837]
[1768389931710,0.77739454,931.95,930.14,2.6562837]
[1768389931906,0.77739454,931.94,930.14,2.6562837]
[1768389932210,0.77739454,931.93,930.14,2.6562837]
[1768389932411,0.77739454,931.92,930.13,2.6562837]
[1768389932607,0.77739454,931.91,930.13,2.6562837]
[1768389932910,0.77739454,931.9,930.13,2.6562837]
[1768389933111,0.77739454,931.89,930.13,2.6562837]
[1768389933310,0.77739454,931.88,930.13,2.6562837]
[1768389933511,0.77739454,931.87,930.13,2.6562837]
[1768389933708,0.77739454,931.86,930.13,2.6562837]
[1768389933912,0.77739454,931.85,930.13,2.6562837]
[1768389934208,0.77739454,931.84,930.13,2.6562837]
[1768389934406,0.77739454,931.83,930.13,2.6562837]
[1768389934612,0.77739454,931.82,930.13,2.6562837]
[1768389934813,0.77739454,931.81,930.13,2.6562837]
[1768389935014,0.77739454,931.8,930.13,2.6562837]
[1768389935212,0.77739454,931.79,930.13,2.6562837]
[1768389935413,0.77739454,931.78,930.13,2.6562837]
[1768389935618,0.77739454,931.77,930.13,2.6562837]
[1768389935816,0.77739454,931.76,930.13,2.6562837]
[1768389936019,0.77739454,931.75,930.13,2.6562837]
[1768389936216,0.77739454,931.74,930.13,2.6562837]
[1768389936714,0.77739454,931.73,930.13,2.6562837]
[1768389936915,0.77739454,931.72,930.13,2.6562837]
[1768389937116,0.77739454,931.71,930.13,2.6562837]
[1768389937318,0.77739454,931.7,930.13,2.6562837]
[1768389937515,0.77739454,931.69,930.13,2.6562837]
[1768389937719,0.77739454,931.68,930.13,2.6562837]
[1768389937921,0.77739454,931.67,930.13,2.6562837]
[1768389938222,1.276,931.69,930.13,2.6562837]
[1768389938521,0.7759792,931.68,930.13,2.6562837]
[1768389938717,0.7759792,931.67,930.13,2.6562837]
[1768389939019,1.276,931.69,930.13,2.6562837]
[1768389939222,0.77597901,931.68,930.13,2.6562837]
[1768389939420,0.77597901,931.67,930.13,2.6562837]
[1768389939620,1.276,931.69,930.13,2.6562837]
[1768389939819,0.77597087,931.68,930.13,2.6562837]
[1768389940020,0.77597087,931.67,930.13,2.6562837]
[1768389940317,1.276,931.69,930.13,2.6562837]
[1768389940519,0.77596276,931.68,930.13,2.6562837]
[1768389940716,0.77596276,931.67,930.13,2.6562837]
[1768389940918,1.276,931.69,930.13,2.6562837]
[1768389941320,1.276,931.69,930.16,2.6562837]
[1768389941821,1.276,931.69,930.17,2.6562837]
[1768389942322,1.276,931.69,930.16,2.6562837]
[1768389946420,1.276,931.69,930.17,2.6562837]
[1768389947022,1.276,931.69,930.18,2.6562837]
[1768389948622,1.276,931.69,930.19,2.6562837]
[1768389950127,1.276,931.69,930.2,2.6562837]
[1768389950728,1.276,931.69,930.21,2.6562837]
[1768389952828,1.276,931.69,930.22,2.6562837]
[1768389954226,1.276,931.69,930.23,2.6562837]
[1768389954827,0.18678797,932.45,930.23,2.6562837]
[1768389955128,0.77653579,932.44,930.23,2.6562837]
[1768389955329,0.77653579,932.43,930.23,2.6562837]
[1768389955631,0.77653579,932.42,930.23,2.6562837]
[1768389955831,0.77653579,932.41,930.23,2.6562837]
[1768389956127,0.77653579,932.4,930.23,2.6562837]
[1768389956327,0.77653579,932.39,930.24,2.6562837]
[1768389956531,0.77653579,932.38,930.24,2.6562837]
[1768389956727,0.77653579,932.37,930.24,2.6562837]
[1768389956930,0.77653579,932.36,930.24,2.6562837]
[1768389957128,0.77653579,932.35,930.24,2.6562837]
[1768389957329,0.77653579,932.34,930.28,2.6562837]
[1768389957527,0.77653579,932.33,930.28,2.6562837]
[1768389957726,0.18678797,932.45,930.28,2.6562837]
[1768389957727,0.77653579,932.32,930.28,2.6562837]
[1768389957928,0.77653579,932.31,930.28,2.6562837]
[1768389958131,0.77653579,932.3,930.28,2.6562837]
[1768389958329,0.77653579,932.29,930.28,2.6562837]
[1768389958532,0.77653579,932.28,930.29,2.6562837]
[1768389958730,0.77653579,932.27,930.29,2.6562837]
[1768389958929,0.77653579,932.26,930.29,2.6562837]
[1768389959133,0.77653579,932.25,930.28,2.6562837]
[1768389959430,0.77653579,932.24,930.28,2.6562837]
[1768389959630,0.77653579,932.23,930.29,2.6562837]
[1768389959933,0.77653579,932.22,930.29,2.6562837]
[1768389960135,0.77653579,932.21,930.19,2.6562837]
[1768389960430,0.77653579,932.2,930.19,2.6562837]
[1768389960627,0.77653579,932.19,930.13,2.6562837]
[1768389960829,0.77653579,932.18,930.13,2.6562837]
[1768389961028,0.77653579,932.18,929.87,3.7187971]
[1768389961029,0.77653579,932.17,930.12,2.6562837]
[1768389961230,0.77653579,932.16,930.12,2.6562837]
[1768389961428,0.77653579,932.15,930.12,2.6562837]
[1768389961633,0.77653579,932.14,930.05,2.6562837]
[1768389961834,0.77653579,932.13,930.05,2.6562837]
[1768389962031,0.77653579,932.12,930.05,2.6562837]
[1768389962234,0.77653579,932.11,930.05,2.6562837]
[1768389962434,0.77653579,932.1,930.05,2.6562837]
[1768389962632,0.77653579,932.09,930.05,2.6562837]
[1768389962832,0.77653579,932.08,930.05,2.6562837]
[1768389963037,0.77653579,932.07,930.05,2.6562837]
[1768389963235,0.77653579,932.06,930.05,2.6562837]
[1768389963431,0.77653579,932.05,930.05,2.6562837]
[1768389963737,0.77653579,932.04,930.04,2.6562837]
[1768389963936,0.77653579,932.03,930.04,2.6562837]
[1768389964135,0.77653579,932.02,930.04,2.6562837]
[1768389964333,0.77653579,932.01,930.04,2.6562837]
[1768389964638,0.77653579,932.0,930.04,2.6562837]
[1768389964839,0.77653579,931.99,930.03,2.6562837]
[1768389965038,0.77653579,931.98,930.03,2.6562837]
[1768389965235,0.77653579,931.97,930.03,2.6562837]
[1768389965438,0.77653579,931.96,930.02,2.6562837]
[1768389965738,0.77653579,931.95,930.02,2.6562837]
[1768389965936,0.77653579,931.94,930.02,2.6562837]
[1768389966135,0.77653579,931.93,930.02,2.6562837]
[1768389966340,0.77653579,931.92,930.02,2.6562837]
[1768389966535,0.77653579,931.91,930.02,2.6562837]
[1768389966736,0.77653579,931.9,930.02,2.6562837]
[1768389967040,0.77653579,931.89,930.02,2.6562837]
[1768389967336,0.77653579,931.88,930.02,2.6562837]
[1768389967540,0.77653579,931.87,929.98,2.6562837]
[1768389967735,0.77653579,931.86,929.98,2.6562837]
[1768389967935,0.77653579,931.85,929.97,2.6562837]
[1768389968140,0.77653579,931.84,929.97,2.6562837]
[1768389968337,0.77653579,931.83,929.97,2.6562837]
[1768389968538,0.77653579,931.82,929.97,2.6562837]
[1768389968738,0.77653579,931.81,929.97,2.6562837]
[1768389968937,0.77653579,931.8,929.97,2.6562837]
[1768389969143,0.77653579,931.79,929.97,2.6562837]
[1768389969342,0.77653579,931.78,929.97,2.6562837]
[1768389969638,0.77653579,931.77,929.96,2.6562837]
[1768389969838,0.77653579,931.76,929.96,2.6562837]
[1768389970141,0.77639655,931.75,929.96,2.6562837]
[1768389970339,0.77639655,931.74,929.96,2.6562837]